bitfinex/quotes_BTCUSD_20240828
["timestamp","ask_amount","ask_price","bid_price","bid_amount"]
[1724854820545,0.00358,60060.0,60059.0,0.1147]
[1724854821456,0.00358,60060.0,60059.0,0.1007]
[1724854821457,0.17008,60060.0,60059.0,0.1007]
[1724854821678,0.00358,60060.0,60059.0,0.1147]
[1724854821882,0.00358,60060.0,60059.0,0.1287]
[1724854822297,0.00358,60060.0,60059.0,0.1147]
[1724854822509,0.00358,60060.0,60059.0,0.1287]
[1724854822722,0.00358,60060.0,60059.0,0.11802947]
[1724854822851,0.50308,60060.0,60059.0,0.11802947]
[1724854823064,0.17008,60060.0,60059.0,0.1147]
[1724854823274,0.00358,60060.0,60059.0,0.1147]
[1724854823696,0.17008,60060.0,60059.0,0.1147]
[1724854823935,0.83608,60060.0,60059.0,0.1147]
[1724854824368,0.83608,60060.0,60059.0,0.1287]
[1724854824579,0.83608,60060.0,60059.0,0.1147]
[1724854824787,0.83608,60060.0,60059.0,0.037]
[1724854825366,0.00358,60060.0,60059.0,0.037]
[1724854825704,0.17008,60060.0,60059.0,0.051]
[1724854825907,0.00358,60060.0,60059.0,0.051]
[1724854826140,0.50308,60060.0,60059.0,0.037]
[1724854826368,0.83608,60060.0,60059.0,0.037]
[1724854826581,1.16908,60060.0,60059.0,0.023]
[1724854826804,1.16908,60060.0,60048.0,0.0008998]
[1724854826805,0.832582,60054.0,60048.0,0.0008998]
[1724854827015,0.499591,60049.0,60048.0,0.0008998]
[1724854827230,0.832652,60049.0,60048.0,0.0008998]
[1724854827443,1.165713,60049.0,60048.0,0.0008998]
[1724854827724,1.7889653,60049.0,60048.0,0.0008998]
[1724854828348,1.8671653,60049.0,60048.0,0.0138998]
[1724854828562,1.8671653,60049.0,60048.0,8e-07]
[1724854828563,2.2152263,60049.0,60048.0,8e-07]
[1724854828778,2.2152263,60049.0,60020.0,0.09772449]
[1724854828779,1.166179,60025.0,60020.0,0.09772449]
[1724854829202,1.1662,60024.0,60020.0,0.09772449]
[1724854829386,1.2662,60024.0,60020.0,0.09772449]
[1724854830011,1.5994,60024.0,60020.0,0.09772449]
[1724854830259,0.1774,60024.0,59998.0,0.1384]
[1724854830478,0.499983,60002.0,59998.0,0.0778]
[1724854830707,0.166664,60001.0,59998.0,0.0778]
[1724854830930,0.166667,60000.0,59998.0,0.0778]
[1724854831157,0.166669,59999.0,59998.0,0.0778]
[1724854831648,0.166664,60001.0,59998.0,0.0778]
[1724854831878,0.333317,60003.0,59998.0,0.0778]
[1724854832091,0.35943745,60005.0,59998.0,0.0778]
[1724854832319,0.001,60000.0,59998.0,0.0918]
[1724854832543,0.333331,60001.0,59992.0,0.0606]
[1724854832744,0.167661,60002.0,60001.0,0.01]
[1724854832948,0.500983,60002.0,60001.0,0.01]
[1724854833163,0.834305,60002.0,60001.0,0.01]
[1724854833362,1.167627,60002.0,60001.0,0.01]
[1724854833778,1.267627,60002.0,60001.0,0.01]
[1724854833983,0.833345,59999.0,59998.0,0.012]
[1724854834641,0.500007,59999.0,59998.0,0.012]
[1724854834850,0.166689,59992.0,59987.0,0.008998]
[1724854835057,0.166696,59990.0,59988.0,0.023]
[1724854835489,0.166693,59991.0,59988.0,0.023]
[1724854835722,0.333366,59995.0,59988.0,0.023]
[1724854835942,0.3334,59988.0,59987.0,0.008998]
[1724854836164,0.8335,59988.0,59987.0,0.008998]
[1724854836798,0.52623767,59988.0,59987.0,0.008998]
[1724854837217,0.52623767,59988.0,59987.0,0.025648]
[1724854838286,0.85963767,59988.0,59987.0,0.025648]
[1724854838703,0.85963767,59988.0,59987.0,0.031648]
[1724854838704,1.27757423,59988.0,59987.0,0.031648]
[1724854838918,1.29403767,59988.0,59987.0,0.031648]
[1724854839380,1.29503767,59988.0,59987.0,0.038648]
[1724854839617,1.29403767,59988.0,59987.0,0.032648]
[1724854839836,1.29303767,59988.0,59987.0,0.025648]
[1724854840065,0.62823767,59988.0,59987.0,0.037648]
[1724854840518,1.29503767,59988.0,59987.0,0.037648]
[1724854840975,1.37493767,59988.0,59987.0,0.037648]
[1724854841195,1.37393767,59988.0,59987.0,0.032648]
[1724854841417,1.03953767,59988.0,59987.0,0.025648]
[1724854841627,1.37893767,59988.0,59987.0,0.026648]
[1724854841841,1.37293767,59988.0,59987.0,0.026648]
[1724854842263,1.37293767,59988.0,59987.0,0.025648]
[1724854842264,0.96163767,59988.0,59987.0,0.025648]
[1724854842470,0.9355,59988.0,59987.0,0.030648]
[1724854842704,1.688,59988.0,59987.0,0.030648]
[1724854842939,1.7657,59988.0,59987.0,0.030648]
[1724854843144,1.7617,59988.0,59987.0,0.025648]
[1724854843380,0.333566,59958.0,59957.0,0.50540786]
[1724854843620,0.500349,59958.0,59957.0,0.50540786]
[1724854843834,0.333564,59959.0,59948.0,0.0761]
[1724854844041,0.333552,59961.0,59949.0,0.333613]
[1724854844249,0.166793,59955.0,59949.0,0.166807]
[1724854844475,0.0637,59964.0,59948.0,0.0761]
[1724854844702,0.1668,59952.0,59944.0,0.000902]
[1724854844919,0.5004,59952.0,59944.0,0.167723]
[1724854845139,0.16679,59956.0,59951.0,0.0034]
[1724854845359,0.1668,59952.0,59951.0,0.0004]
[1724854845568,0.5004,59952.0,59951.0,0.0004]
[1724854846014,0.834,59952.0,59951.0,0.0004]
[1724854846467,0.834,59952.0,59951.0,0.0104]
[1724854846691,1.1686,59952.0,59951.0,0.0104]
[1724854846998,0.1678,59952.0,59951.0,0.0104]
[1724854847213,0.36073133,59956.0,59951.0,0.0014]
[1724854847214,0.166792,59955.0,59951.0,0.0014]
[1724854847424,0.1678,59952.0,59951.0,0.0104]
[1724854847651,0.1678,59952.0,59951.0,0.0094]
[1724854847864,0.1688,59952.0,59951.0,0.0104]
[1724854848335,0.5024,59952.0,59951.0,0.0094]
[1724854848560,0.836,59952.0,59951.0,0.0104]
[1724854848793,0.834,59952.0,59951.0,0.0013009]
[1724854849219,0.5024,59952.0,59951.0,0.0023009]
[1724854849435,0.002,59952.0,59951.0,0.0023009]
[1724854849663,0.001,59952.0,59951.0,0.0023009]
[1724854849886,0.002,59952.0,59951.0,0.0023009]
[1724854850818,0.1688,59952.0,59951.0,0.0023009]
[1724854851070,0.002,59952.0,59951.0,0.0023009]
[1724854851305,0.836,59952.0,59951.0,0.0023009]
[1724854851516,0.1688,59952.0,59951.0,0.0023009]
[1724854852178,0.1678,59952.0,59951.0,0.0023009]
[1724854852393,0.001,59952.0,59951.0,0.1691029]
[1724854852603,0.002,59952.0,59951.0,0.0033009]
[1724854852821,0.002,59952.0,59951.0,0.5037079]
[1724854853036,0.001,59952.0,59951.0,0.8363129]
[1724854853474,0.002,59952.0,59951.0,0.8373129]
[1724854854133,0.002,59952.0,59951.0,0.0023009]
[1724854854134,0.001,59952.0,59951.0,0.0023009]
[1724854854642,0.002,59952.0,59951.0,0.1701029]
[1724854854859,0.002,59952.0,59951.0,0.5037079]
[1724854855291,0.02615233,59956.0,59951.0,0.3349059]
[1724854855500,0.02615233,59956.0,59951.0,0.0023009]
[1724854855711,0.002,59952.0,59951.0,0.0033009]
[1724854855953,0.002,59952.0,59951.0,0.0023009]
[1724854856215,0.003,59952.0,59951.0,0.1701029]
[1724854856467,0.002,59952.0,59951.0,0.1691029]
[1724854856724,0.002,59952.0,59951.0,0.1701029]
[1724854856986,0.002,59952.0,59951.0,0.0033009]
[1724854857241,0.002,59952.0,59951.0,0.1701029]
[1724854857506,0.166792,59955.0,59951.0,0.1681029]
[1724854857747,0.166797,59953.0,59951.0,0.0023009]
[1724854858014,0.166794,59955.0,59951.0,0.1681029]
[1724854858253,0.166797,59953.0,59951.0,0.0013009]
[1724854858464,0.001,59952.0,59951.0,0.0023009]
[1724854858681,0.5004,59952.0,59951.0,0.0013009]
[1724854858889,0.5014,59952.0,59951.0,0.0023009]
[1724854859098,0.835,59952.0,59951.0,0.0033009]
[1724854859310,0.834,59952.0,59951.0,0.0013009]
[1724854859746,0.835,59952.0,59951.0,0.0023009]
[1724854859958,1.1686,59952.0,59951.0,0.0023009]
[1724854860167,1.5012,59952.0,59951.0,0.0013009]
[1724854860377,1.2676,59952.0,59951.0,0.0013009]
[1724854860585,1.2686,59952.0,59951.0,0.0023009]
[1724854860807,1.2696,59952.0,59951.0,0.0033009]
[1724854861026,1.2686,59952.0,59951.0,0.0023009]
[1724854861453,1.2726,59952.0,59951.0,0.0023009]
[1724854861896,1.2716,59952.0,59951.0,0.0013009]
[1724854862324,1.74891538,59952.0,59951.0,0.0013009]
[1724854862325,1.75291538,59952.0,59951.0,0.0013009]
[1724854862585,1.75291538,59952.0,59944.0,0.000902]
[1724854862586,1.643875,59945.0,59944.0,0.000902]
[1724854862838,2.10726728,59945.0,59944.0,0.000902]
[1724854863125,2.11226728,59945.0,59944.0,0.000902]
[1724854863347,2.11226728,59945.0,59911.0,0.0004]
[1724854863348,0.94835828,59932.0,59911.0,0.0004]
[1724854863579,2.00999128,59932.0,59911.0,0.0004]
[1724854863793,2.12199128,59932.0,59911.0,0.0004]
[1724854864240,2.12199128,59932.0,59914.0,0.50540786]
[1724854864241,1.185027,59930.0,59914.0,0.50540786]
[1724854864472,0.53328328,59919.0,59911.0,0.0004]
[1724854864718,1.77103228,59919.0,59915.0,0.50540786]
[1724854864945,1.81462501,59919.0,59915.0,0.50540786]
[1724854865170,1.81462501,59919.0,59911.0,0.0004]
[1724854865635,0.64426673,59919.0,59911.0,0.0765]
[1724854865848,0.04359273,59919.0,59911.0,0.07983805]
[1724854866107,0.04559273,59919.0,59915.0,0.064]
[1724854866317,0.54626673,59919.0,59911.0,0.0765]
[1724854866546,0.88004973,59919.0,59911.0,0.0765]
[1724854866762,0.22648373,59919.0,59911.0,0.243413]
[1724854866966,0.56026673,59919.0,59911.0,0.0765]
[1724854867177,0.89404973,59919.0,59911.0,0.0765]
[1724854867830,0.90204973,59919.0,59911.0,0.0765]
[1724854868049,0.06759273,59919.0,59912.0,0.33716009]
[1724854868274,0.0501719,59919.0,59918.0,0.5771839]
[1724854868491,0.0341719,59919.0,59918.0,0.60757591]
[1724854868693,0.0261719,59919.0,59918.0,0.25078691]
[1724854868919,0.1960629,59919.0,59918.0,0.00829291]
[1724854869151,0.98023519,59919.0,59918.0,0.00829291]
[1724854869370,1.04213519,59919.0,59918.0,0.0009009]
[1724854869578,0.98123519,59919.0,59918.0,0.0009009]
[1724854869833,0.9616289,59919.0,59918.0,0.0009009]
[1724854870039,0.9626289,59919.0,59918.0,0.0009009]
[1724854870520,0.9616289,59919.0,59918.0,0.0009009]
[1724854870736,1.3729119,59919.0,59918.0,0.0009009]
[1724854870957,1.51640309,59919.0,59918.0,0.0009009]
[1724854871176,1.91048609,59919.0,59918.0,0.0009009]
[1724854871398,1.92048609,59919.0,59918.0,0.0009009]
[1724854872036,1.92148609,59919.0,59918.0,0.0009009]
[1724854872459,1.92048609,59919.0,59918.0,0.0009009]
[1724854872664,1.584899,59912.0,59911.0,0.0004]
[1724854872883,2.07528328,59912.0,59911.0,0.0004]
[1724854873092,2.17528328,59912.0,59911.0,0.0004]
[1724854873315,2.50910528,59912.0,59911.0,0.0004]
[1724854873527,2.54528254,59912.0,59911.0,0.0004]
[1724854873758,2.71054985,59912.0,59911.0,0.0004]
[1724854873971,2.71054985,59912.0,59911.0,1e-06]
[1724854873972,3.04437185,59912.0,59911.0,1e-06]
[1724854874410,1.655277,59897.0,59896.0,0.008998]
[1724854874620,1.765277,59897.0,59896.0,0.008998]
[1724854874831,1.93582864,59897.0,59896.0,0.008998]
[1724854875041,1.93382864,59897.0,59896.0,0.008998]
[1724854875278,1.79146013,59897.0,59896.0,0.008998]
[1724854875713,1.79146013,59897.0,59891.0,0.0130215]
[1724854875714,0.834835,59892.0,59891.0,0.0079204]
[1724854875925,0.1,59892.0,59891.0,0.0079204]
[1724854876140,0.04018313,59897.0,59896.0,0.166956]
[1724854876353,0.05418313,59897.0,59891.0,0.0079204]
[1724854876558,0.166963,59894.0,59891.0,0.0079204]
[1724854876781,0.333916,59896.0,59891.0,0.0079204]
[1724854876993,0.509901,59892.0,59891.0,0.0079204]
[1724854877215,1.177769,59892.0,59891.0,0.0079204]
[1724854877497,1.277769,59892.0,59891.0,0.0079204]
[1724854877917,1.611703,59892.0,59891.0,0.0079204]
[1724854878136,1.284769,59892.0,59891.0,0.0079204]
[1724854878349,1.273769,59892.0,59891.0,0.0079204]
[1724854878793,1.280769,59892.0,59891.0,0.0079204]
[1724854879004,0.934835,59892.0,59891.0,0.0079204]
[1724854879451,1.280769,59892.0,59891.0,0.0079204]
[1724854879662,0.946835,59892.0,59891.0,0.0079204]
[1724854880278,0.612901,59892.0,59891.0,0.0079204]
[1724854880693,0.278967,59892.0,59891.0,0.0079204]
[1724854880918,0.005,59892.0,59891.0,0.6573284]
[1724854881126,0.012,59892.0,59891.0,0.9912674]
[1724854881337,0.02618313,59897.0,59891.0,0.4903594]
[1724854881551,0.02618313,59897.0,59891.0,0.0079204]
[1724854881552,0.500901,59892.0,59891.0,0.0079204]
[1724854881760,0.836835,59892.0,59891.0,0.0079204]
[1724854881974,0.502901,59892.0,59891.0,0.0079204]
[1724854882185,0.500901,59892.0,59891.0,0.0079204]
[1724854882400,0.8851251,59892.0,59891.0,0.0079204]
[1724854882612,0.9861251,59892.0,59891.0,0.0079204]
[1724854882833,1.3200591,59892.0,59891.0,0.0079204]
[1724854883090,0.936835,59892.0,59891.0,0.0079204]
[1724854883738,0.95425583,59892.0,59891.0,0.0079204]
[1724854883951,0.95325583,59892.0,59891.0,0.0079204]
[1724854884158,0.95325583,59892.0,59891.0,0.0089204]
[1724854884367,0.95225583,59892.0,59891.0,0.0089204]
[1724854884580,0.95225583,59892.0,59891.0,0.0079204]
[1724854884789,0.95225583,59892.0,59891.0,0.0109204]
[1724854885067,1.04748141,59892.0,59891.0,0.0099204]
[1724854885273,1.38141541,59892.0,59891.0,0.0099204]
[1724854885478,1.36838983,59892.0,59891.0,0.0118224]
[1724854885699,1.36838983,59892.0,59891.0,0.0108224]
[1724854886344,1.28618983,59892.0,59891.0,0.0088224]
[1724854886554,0.95225583,59892.0,59891.0,0.0088224]
[1724854886764,0.28438783,59892.0,59891.0,0.0088224]
[1724854886979,0.28438783,59892.0,59891.0,0.0873224]
[1724854887191,0.61832183,59892.0,59891.0,0.0873224]
[1724854887657,0.95225583,59892.0,59891.0,0.0108224]
[1724854887859,1.28618983,59892.0,59891.0,0.0118224]
[1724854888291,1.28618983,59892.0,59891.0,0.0108224]
[1724854888697,1.28618983,59892.0,59891.0,0.0118224]
[1724854888904,1.44970031,59892.0,59891.0,0.0118224]
[1724854889575,1.78363431,59892.0,59891.0,0.0118224]
[1724854889814,1.93243431,59892.0,59891.0,0.00725089]
[1724854890032,2.27836831,59892.0,59891.0,0.00725089]
[1724854890263,2.27636831,59892.0,59891.0,0.00725089]
[1724854890477,1.77892383,59892.0,59891.0,0.00725089]
[1724854890712,1.79118734,59892.0,59891.0,0.00725089]
[1724854890931,1.79118734,59892.0,59891.0,0.00425089]
[1724854891141,1.80518734,59892.0,59891.0,0.00425089]
[1724854891379,1.98973898,59892.0,59891.0,0.00525089]
[1724854891585,1.97573898,59892.0,59891.0,0.00425089]
[1724854891797,1.79118734,59892.0,59891.0,0.00425089]
[1724854892005,1.79118734,59892.0,59891.0,0.00525089]
[1724854892006,1.81918734,59892.0,59891.0,0.00525089]
[1724854892434,1.79518734,59892.0,59891.0,0.00425089]
[1724854892706,1.65138734,59892.0,59891.0,0.00525089]
[1724854892918,1.32645334,59892.0,59891.0,0.00525089]
[1724854893134,1.31418983,59892.0,59891.0,0.00525089]
[1724854893354,1.45110881,59892.0,59891.0,0.00525089]
[1724854893569,1.80197616,59892.0,59891.0,0.00525089]
[1724854893779,1.66505718,59892.0,59891.0,0.00525089]
[1724854893995,1.65105718,59892.0,59891.0,0.00425089]
[1724854894425,1.65105718,59892.0,59891.0,0.00525089]
[1724854894426,1.67005718,59892.0,59891.0,0.00525089]
[1724854894645,1.90640882,59892.0,59891.0,0.00425089]
[1724854894851,1.90840882,59892.0,59891.0,0.00425089]
[1724854895068,1.91840882,59892.0,59891.0,0.00525089]
[1724854895283,1.90840882,59892.0,59891.0,0.00425089]
[1724854895718,1.90840882,59892.0,59887.0,0.00902]
[1724854895719,1.519802,59888.0,59887.0,0.00902]
[1724854895983,2.030558,59888.0,59887.0,0.00902]
[1724854896212,2.092458,59888.0,59887.0,0.00902]
[1724854896505,2.11864425,59888.0,59887.0,0.00902]
[1724854897169,1.78968825,59888.0,59887.0,0.00902]
[1724854897387,1.79168825,59888.0,59887.0,0.00902]
[1724854897596,1.96023989,59888.0,59887.0,0.00902]
[1724854897851,1.79168825,59888.0,59887.0,0.00902]
[1724854898076,1.79768825,59888.0,59887.0,0.01002]
[1724854898709,1.79968825,59888.0,59887.0,0.01002]
[1724854898918,2.13364425,59888.0,59887.0,0.01002]
[1724854899144,2.30219589,59888.0,59887.0,0.01002]
[1724854899385,1.93996228,59885.0,59884.0,0.00902]
[1724854899598,2.27593528,59885.0,59884.0,0.00902]
[1724854899836,2.37593528,59885.0,59884.0,0.00902]
[1724854900047,2.40379416,59885.0,59884.0,0.00902]
[1724854900741,1.854005,59880.0,59879.0,0.1]
[1724854901217,1.954005,59880.0,59879.0,0.1]
[1724854901484,2.31419731,59880.0,59879.0,0.1]
[1724854901697,2.92108289,59880.0,59879.0,0.1]
[1724854901929,2.55854895,59880.0,59879.0,0.1]
[1724854902147,1.71499531,59880.0,59879.0,0.1]
[1724854902356,1.67016545,59880.0,59879.0,0.1]
[1724854902569,1.65116545,59880.0,59879.0,0.1]
[1724854902785,1.65616545,59880.0,59879.0,0.1]
[1724854903022,1.67016545,59880.0,59879.0,0.1]
[1724854903232,1.65616545,59880.0,59879.0,0.1]
[1724854903655,1.74846545,59880.0,59879.0,0.1]
[1724854903871,1.75046545,59880.0,59879.0,0.1]
[1724854904078,1.68416545,59880.0,59879.0,0.1]
[1724854904332,1.67416545,59880.0,59879.0,0.1]
[1724854904543,2.09606645,59880.0,59879.0,0.1]
[1724854904751,2.26461809,59880.0,59879.0,0.1]
[1724854905180,2.08206645,59880.0,59879.0,0.1]
[1724854905388,2.06806645,59880.0,59879.0,0.1]
[1724854905593,2.08206645,59880.0,59879.0,0.1]
[1724854905805,2.45660039,59880.0,59879.0,0.1]
[1724854906016,2.76460139,59880.0,59879.0,0.1]
[1724854906236,2.58461909,59880.0,59879.0,0.1]
[1724854906451,2.96115303,59880.0,59879.0,0.1]
[1724854906665,2.96115303,59880.0,59871.0,0.0004]
[1724854906666,2.55082594,59872.0,59871.0,0.0004]
[1724854906881,2.69642594,59872.0,59871.0,0.0004]
[1724854907114,2.63093258,59872.0,59871.0,0.0004]
[1724854907366,2.46238094,59872.0,59871.0,0.0004]
[1724854907576,2.48857742,59872.0,59871.0,0.0004]
[1724854908281,2.53196657,59872.0,59871.0,0.0004]
[1724854908521,2.55496657,59872.0,59871.0,0.0004]
[1724854908771,2.55496657,59872.0,59858.0,0.009009]
[1724854908772,1.503531,59859.0,59858.0,0.009009]
[1724854908981,1.96606494,59859.0,59858.0,0.009009]
[1724854909195,1.96606494,59859.0,59858.0,0.01704801]
[1724854909399,1.96606494,59859.0,59858.0,0.009009]
[1724854909604,1.99226322,59859.0,59858.0,0.009009]
[1724854910261,1.99926322,59859.0,59858.0,0.009009]
[1724854910484,1.65814522,59859.0,59858.0,0.009009]
[1724854910778,1.67017856,59859.0,59858.0,0.009009]
[1724854911952,1.68117856,59859.0,59858.0,0.009009]
[1724854912156,1.81538542,59859.0,59858.0,0.009009]
[1724854912364,1.68117856,59859.0,59858.0,0.009009]
[1724854912604,1.67017856,59859.0,59858.0,0.009009]
[1724854912812,1.67617856,59859.0,59858.0,0.009009]
[1724854913330,1.68717856,59859.0,59858.0,0.009009]
[1724854913572,1.68717856,59859.0,59851.0,0.009409]
[1724854913573,1.169549,59852.0,59851.0,0.009409]
[1724854913813,1.169549,59852.0,59851.0,0.084609]
[1724854914063,1.274549,59852.0,59851.0,0.084609]
[1724854914302,1.82465376,59852.0,59851.0,0.009409]
[1724854914516,1.99244016,59852.0,59851.0,0.009409]
[1724854914734,1.65828316,59852.0,59851.0,0.009409]
[1724854914947,1.67028316,59852.0,59851.0,0.009409]
[1724854915172,1.67528316,59852.0,59851.0,0.009409]
[1724854915385,1.68070399,59852.0,59851.0,0.009409]
[1724854915599,1.69259235,59852.0,59851.0,0.009409]
[1724854915805,1.70459235,59852.0,59851.0,0.009409]
[1724854916045,1.00290141,59852.0,59851.0,0.15170899]
[1724854916257,0.55674441,59852.0,59851.0,0.15170899]
[1724854916486,0.54254419,59852.0,59851.0,0.15170899]
[1724854916699,0.87670119,59852.0,59851.0,0.15170899]
[1724854916905,0.87670119,59852.0,59851.0,0.149709]
[1724854917135,1.67306225,59852.0,59851.0,0.009409]
[1724854917344,1.66106225,59852.0,59851.0,0.009409]
[1724854917549,1.67339213,59852.0,59851.0,0.009409]
[1724854917762,1.67539213,59852.0,59851.0,0.009409]
[1724854917972,2.03574968,59852.0,59851.0,0.009409]
[1724854918416,1.68959268,59852.0,59851.0,0.009409]
[1724854918632,1.69059268,59852.0,59851.0,0.009409]
[1724854919309,1.68959268,59852.0,59851.0,0.009409]
[1724854919555,1.70159268,59852.0,59851.0,0.009409]
[1724854919826,1.69959268,59852.0,59851.0,0.009409]
[1724854920282,1.71159268,59852.0,59851.0,0.009409]
[1724854920493,1.34905874,59852.0,59851.0,0.01140899]
[1724854920716,1.34905874,59852.0,59851.0,0.009409]
[1724854920925,1.32505874,59852.0,59851.0,0.009409]
[1724854921377,2.03474968,59852.0,59851.0,0.009409]
[1724854921619,2.03374968,59852.0,59851.0,0.009409]
[1724854921842,2.03174968,59852.0,59851.0,0.009409]
[1724854922059,2.20630132,59852.0,59851.0,0.009409]
[1724854922522,2.20030132,59852.0,59851.0,0.009409]
[1724854922768,2.53445832,59852.0,59851.0,0.009409]
[1724854923010,2.54845832,59852.0,59851.0,0.009409]
[1724854923233,2.55545832,59852.0,59851.0,0.009409]
[1724854923444,2.54845832,59852.0,59851.0,0.009409]
[1724854923764,2.54845832,59852.0,59834.0,0.0778]
[1724854923765,1.504134,59835.0,59834.0,0.0778]
[1724854923987,1.16992,59833.0,59832.0,0.0117206]
[1724854924209,1.604183,59833.0,59832.0,0.0117206]
[1724854924429,2.091446,59833.0,59832.0,0.0117206]
[1724854924644,2.25999764,59833.0,59832.0,0.0117206]
[1724854925070,1.757183,59833.0,59832.0,0.0117206]
[1724854925508,1.77947603,59833.0,59832.0,0.0117206]
[1724854926386,1.76947603,59833.0,59832.0,0.0117206]
[1724854926603,1.63647603,59833.0,59832.0,0.0117206]
[1724854926822,1.62647603,59833.0,59832.0,0.0117206]
[1724854927027,1.78418362,59833.0,59832.0,0.0117206]
[1724854927232,1.79818362,59833.0,59832.0,0.0117206]
[1724854927465,1.78418362,59833.0,59832.0,0.0117206]
[1724854927685,1.78418362,59833.0,59831.0,0.009409]
[1724854927686,2.2547562,59833.0,59831.0,0.009409]
[1724854927953,2.2547562,59833.0,59828.0,0.00012]
[1724854927954,1.29024894,59829.0,59828.0,0.00012]
[1724854928188,1.29024894,59829.0,59824.0,0.00902]
[1724854928189,1.514386,59825.0,59824.0,0.00902]
[1724854928434,1.614386,59825.0,59824.0,0.00902]
[1724854928694,1.614386,59825.0,59801.0,0.51040786]
[1724854928695,1.20848594,59812.0,59801.0,0.50540786]
[1724854928935,1.20848594,59812.0,59783.0,0.16727]
[1724854928936,0.511679,59799.0,59794.0,0.50540786]
[1724854929202,1.84655929,59799.0,59794.0,0.50540786]
[1724854929447,1.84655929,59799.0,59798.0,0.01717516]
[1724854929448,1.615038,59799.0,59798.0,0.01717516]
[1724854929704,1.615038,59799.0,59798.0,0.00902]
[1724854929940,1.610038,59799.0,59798.0,0.00902]
[1724854930192,1.615038,59799.0,59798.0,0.00902]
[1724854930451,1.80981546,59799.0,59798.0,0.00902]
[1724854930705,1.62857583,59799.0,59798.0,0.00902]
[1724854930935,1.65099666,59799.0,59798.0,0.00902]
[1724854931886,1.32554366,59799.0,59798.0,0.00902]
[1724854932139,0.65663766,59799.0,59798.0,0.08552]
[1724854932362,0.05764665,59799.0,59798.0,0.09052]
[1724854932783,0.07164665,59799.0,59798.0,0.1011796]
[1724854933003,0.04542083,59799.0,59798.0,0.1660796]
[1724854933226,0.21264683,59799.0,59798.0,0.1660796]
[1724854933430,0.04542083,59799.0,59798.0,0.1660796]
[1724854933638,0.21264683,59799.0,59798.0,0.15741999]
[1724854934043,0.04542083,59799.0,59798.0,0.16601384]
[1724854934272,0.04242083,59799.0,59798.0,0.16601384]
[1724854934704,0.01842083,59799.0,59798.0,0.33324284]
[1724854935118,0.01842083,59799.0,59798.0,0.16601384]
[1724854935119,0.01742083,59799.0,59798.0,0.16601384]
[1724854935323,0.18464683,59799.0,59798.0,0.16601384]
[1724854935562,0.85355283,59799.0,59798.0,0.15901385]
[1724854935793,1.28800583,59799.0,59798.0,0.01761385]
[1724854936023,1.31422793,59799.0,59798.0,0.00902]
[1724854936264,1.31622793,59799.0,59798.0,0.00902]
[1724854936677,0.98177493,59799.0,59798.0,0.01101999]
[1724854937108,0.14564293,59799.0,59798.0,0.09651999]
[1724854937313,0.14564293,59799.0,59798.0,0.09151999]
[1724854937527,0.88077493,59799.0,59798.0,0.09151999]
[1724854937727,0.88077493,59799.0,59798.0,0.10008402]
[1724854937728,0.98077493,59799.0,59798.0,0.10008402]
[1724854937935,1.31522793,59799.0,59798.0,0.09151999]
[1724854938145,0.97977493,59799.0,59798.0,0.09151999]
[1724854938870,1.31422793,59799.0,59798.0,0.09151999]
[1724854939313,1.31422793,59799.0,59798.0,0.00902]
[1724854939763,0.97977493,59799.0,59798.0,0.00902]
[1724854939981,0.97977493,59799.0,59798.0,0.09072]
[1724854940206,0.14364293,59799.0,59798.0,0.09572]
[1724854940430,0.61909983,59799.0,59798.0,0.16132]
[1724854940669,0.61909983,59799.0,59798.0,0.16992358]
[1724854940881,0.28464683,59799.0,59798.0,0.16331999]
[1724854941103,0.28464683,59799.0,59798.0,0.17192357]
[1724854941332,0.11742083,59799.0,59798.0,0.17192357]
[1724854941567,0.01742083,59799.0,59798.0,0.67861157]
[1724854941787,0.01742083,59799.0,59798.0,0.17692357]
[1724854942022,0.18464683,59799.0,59798.0,0.17692357]
[1724854942455,0.01742083,59799.0,59798.0,0.17692357]
[1724854942715,0.51909983,59799.0,59798.0,0.17692357]
[1724854942937,0.01842083,59799.0,59798.0,0.33554899]
[1724854943161,0.01942083,59799.0,59798.0,0.16831999]
[1724854943388,0.01842083,59799.0,59798.0,0.67846034]
[1724854943598,0.01842083,59799.0,59798.0,0.34400134]
[1724854944043,0.01742083,59799.0,59798.0,0.34400134]
[1724854944464,0.01742083,59799.0,59798.0,0.17677234]
[1724854944465,0.01842083,59799.0,59798.0,0.17677234]
[1724854944684,0.18564683,59799.0,59798.0,0.16677234]
[1724854944896,0.88077253,59799.0,59798.0,0.16977235]
[1724854945306,0.54631953,59799.0,59798.0,0.16632]
[1724854945525,0.04464053,59799.0,59798.0,0.01402]
[1724854945735,0.98177253,59799.0,59798.0,0.00902]
[1724854945945,0.98177253,59799.0,59798.0,0.06912]
[1724854945946,0.64814153,59799.0,59798.0,0.06912]
[1724854946158,0.98259453,59799.0,59798.0,0.06912]
[1724854946601,0.98159453,59799.0,59798.0,0.06912]
[1724854946809,0.64814153,59799.0,59798.0,0.06912]
[1724854947043,0.64814153,59799.0,59798.0,0.07412]
[1724854947227,0.98259453,59799.0,59798.0,0.07611999]
[1724854947835,0.98159453,59799.0,59798.0,0.07611999]
[1724854948449,0.98059453,59799.0,59798.0,0.07611999]
[1724854948678,1.31504753,59799.0,59798.0,0.00902]
[1724854948902,1.44755078,59799.0,59798.0,0.00902]
[1724854949127,1.78200378,59799.0,59798.0,0.00902]
[1724854949556,1.92460378,59799.0,59798.0,0.00902]
[1724854949767,1.92360378,59799.0,59798.0,0.00902]
[1724854949981,2.25805678,59799.0,59798.0,0.00902]
[1724854950229,2.26305678,59799.0,59798.0,0.00902]
[1724854950461,2.65073602,59799.0,59798.0,0.00902]
[1724854950675,2.67373602,59799.0,59798.0,0.00902]
[1724854950898,2.59429008,59799.0,59798.0,0.00902]
[1724854951119,2.59429008,59799.0,59791.0,0.00942]
[1724854951120,0.005,59792.0,59791.0,0.00942]
[1724854951348,2.28443994,59792.0,59791.0,0.00942]
[1724854951598,2.28443994,59792.0,59774.0,0.00902]
[1724854951599,1.27614594,59779.0,59774.0,0.00902]
[1724854951815,0.91867,59775.0,59774.0,0.00902]
[1724854952030,0.83679,59752.0,59749.0,0.005]
[1724854952258,2.09273494,59752.0,59747.0,0.00012]